[Event "*** Titled Tuesday 3|2 Blitz"]
[Site "Chess.com"]
[Date "2015.07.07"]
[Round "4"]
[White "BjarkeSahl"]
[Black "Tirantes"]
[Result "1-0"]
[WhiteElo "2118"]
[BlackElo "2202"]
[TimeControl "180+2"]
[EndTime "11:48:18 PDT"]
[Termination "BjarkeSahl won on time"]

1. e4 {[%clk 0:03:01.9]} 1... c6 {[%clk 0:02:59.2]} 2. d4 {[%clk 0:03:01.6]}
2... d5 {[%clk 0:03:00]} 3. e5 {[%clk 0:02:55.5]} 3... c5 {[%clk 0:02:59.8]} 4.
c3 {[%clk 0:02:50.1]} 4... Nc6 {[%clk 0:02:57.5]} 5. Bb5 {[%clk 0:02:02]} 5...
Bf5 {[%clk 0:02:44.5]} 6. dxc5 {[%clk 0:01:38.6]} 6... e6 {[%clk 0:02:42.1]} 7.
b4 {[%clk 0:01:38.5]} 7... Qc7 {[%clk 0:02:36.6]} 8. Nf3 {[%clk 0:01:38.5]} 8...
Ne7 {[%clk 0:02:29.1]} 9. O-O {[%clk 0:01:37]} 9... Ng6 {[%clk 0:02:25.8]} 10.
Re1 {[%clk 0:01:37]} 10... Be7 {[%clk 0:02:20.5]} 11. Nd4 {[%clk 0:01:35.4]}
11... Bxb1 {[%clk 0:02:12.8]} 12. Rxb1 {[%clk 0:01:32.6]} 12... O-O {[%clk
0:02:02.2]} 13. f4 {[%clk 0:01:28.1]} 13... a5 {[%clk 0:01:53.7]} 14. a3 {[%clk
0:01:22.6]} 14... Rfd8 {[%clk 0:01:27.4]} 15. Bd3 {[%clk 0:01:16.4]} 15... axb4
{[%clk 0:01:22.1]} 16. axb4 {[%clk 0:01:16.6]} 16... b6 {[%clk 0:01:19.4]} 17.
cxb6 {[%clk 0:01:03.9]} 17... Qxb6 {[%clk 0:01:19.7]} 18. Be3 {[%clk 0:01:05.3]}
18... Qb7 {[%clk 0:01:14.3]} 19. Nf3 {[%clk 0:01:01.2]} 19... Ra3 {[%clk
0:00:59.3]} 20. Rc1 {[%clk 0:01:00.1]} 20... d4 {[%clk 0:00:54.9]} 21. Nxd4
{[%clk 0:00:56.8]} 21... Nxd4 {[%clk 0:00:51.7]} 22. Bxd4 {[%clk 0:00:43.1]}
22... Nxf4 {[%clk 0:00:33.5]} 23. Be4 {[%clk 0:00:43.2]} 23... Qb8 {[%clk
0:00:29]} 24. Rf1 {[%clk 0:00:42.7]} 24... Ng6 {[%clk 0:00:22.9]} 25. Qf3 {[%clk
0:00:32.1]} 25... Rf8 {[%clk 0:00:20.9]} 26. Qh5 {[%clk 0:00:32.5]} 26... Ra2
{[%clk 0:00:17.2]} 27. Rf3 {[%clk 0:00:32.1]} 27... f5 {[%clk 0:00:12.1]} 28.
Rh3 {[%clk 0:00:26.1]} 28... Nh4 {[%clk 0:00:09.2]} 29. Bc6 {[%clk 0:00:20.5]}
29... Qc7 {[%clk 0:00:07.1]} 30. b5 {[%clk 0:00:19.9]} 1-0

[Event "*** Titled Tuesday 3|2 Blitz"]
[Site "Chess.com"]
[Date "2015.07.07"]
[Round "4"]
[White "goldaxe"]
[Black "1random"]
[Result "1-0"]
[WhiteElo "2156"]
[BlackElo "1985"]
[TimeControl "180+2"]
[EndTime "11:48:29 PDT"]
[Termination "goldaxe won by resignation"]

1. e4 {[%clk 0:03:01.9]} 1... c6 {[%clk 0:02:54.9]} 2. d4 {[%clk 0:03:01.9]}
2... d5 {[%clk 0:02:54.9]} 3. Nc3 {[%clk 0:03:03.5]} 3... dxe4 {[%clk
0:02:54.9]} 4. Nxe4 {[%clk 0:03:05.4]} 4... Bf5 {[%clk 0:02:56.1]} 5. Ng3 {[%clk
0:03:06.3]} 5... Bg6 {[%clk 0:02:57.5]} 6. h4 {[%clk 0:03:08]} 6... h6 {[%clk
0:02:58.9]} 7. Nf3 {[%clk 0:03:09.5]} 7... Nd7 {[%clk 0:03:00.4]} 8. h5 {[%clk
0:03:11.1]} 8... Bh7 {[%clk 0:03:01.9]} 9. Bd3 {[%clk 0:03:12.8]} 9... Bxd3
{[%clk 0:03:03.5]} 10. Qxd3 {[%clk 0:03:14.3]} 10... e6 {[%clk 0:03:05.1]} 11.
Bd2 {[%clk 0:03:15.8]} 11... Ngf6 {[%clk 0:03:06.4]} 12. O-O-O {[%clk
0:03:16.9]} 12... Be7 {[%clk 0:03:08]} 13. Ne4 {[%clk 0:03:17.4]} 13... Nxe4
{[%clk 0:03:09]} 14. Qxe4 {[%clk 0:03:19.3]} 14... Nf6 {[%clk 0:03:10.9]} 15.
Qd3 {[%clk 0:03:17.6]} 15... O-O {[%clk 0:03:09.6]} 16. Kb1 {[%clk 0:03:16.4]}
16... c5 {[%clk 0:03:06.6]} 17. g4 {[%clk 0:02:59.3]} 17... Nxg4 {[%clk
0:03:04]} 18. Qe2 {[%clk 0:02:58.1]} 18... f5 {[%clk 0:02:49.9]} 19. Qxe6+
{[%clk 0:02:56.3]} 19... Kh7 {[%clk 0:02:49.2]} 20. Ne5 {[%clk 0:02:26.1]} 20...
Qd6 {[%clk 0:02:42.3]} 21. Qg6+ {[%clk 0:02:18.8]} 21... Qxg6 {[%clk 0:02:32.1]}
22. hxg6+ {[%clk 0:02:20.7]} 22... Kg8 {[%clk 0:02:33.3]} 23. Nxg4 {[%clk
0:01:36.9]} 23... fxg4 {[%clk 0:02:35.2]} 24. Be3 {[%clk 0:01:34.1]} 24... cxd4
{[%clk 0:02:29.2]} 25. Rxd4 {[%clk 0:01:30.2]} 25... g3 {[%clk 0:01:56.1]} 26.
fxg3 {[%clk 0:01:18.5]} 26... Bc5 {[%clk 0:01:55.4]} 27. Re4 {[%clk 0:01:19.8]}
27... Bxe3 {[%clk 0:01:55.7]} 28. Rxe3 {[%clk 0:01:21.7]} 28... Rf6 {[%clk
0:01:56.1]} 29. Rd1 {[%clk 0:01:01.5]} 29... Rxg6 {[%clk 0:01:52.4]} 30. Rd7
{[%clk 0:01:01.8]} 30... b6 {[%clk 0:01:49.7]} 31. a4 {[%clk 0:00:57.1]} 31...
a5 {[%clk 0:01:45.2]} 32. Rde7 {[%clk 0:00:46.9]} 32... Rd8 {[%clk 0:01:37.1]}
33. b3 {[%clk 0:00:41.7]} 33... Rf6 {[%clk 0:01:36.4]} 34. R7e6 {[%clk
0:00:37.8]} 34... Rd6 {[%clk 0:01:32.7]} 35. Rxd6 {[%clk 0:00:32.1]} 35... Rxd6
{[%clk 0:01:33.3]} 36. Kb2 {[%clk 0:00:33.6]} 36... Kf7 {[%clk 0:01:33.2]} 37.
Kc3 {[%clk 0:00:28.8]} 37... g5 {[%clk 0:01:33.5]} 38. Kc4 {[%clk 0:00:27.8]}
38... Rc6+ {[%clk 0:01:33.6]} 39. Kb5 {[%clk 0:00:28.7]} 39... Rxc2 {[%clk
0:01:34.7]} 40. Kxb6 {[%clk 0:00:29.1]} 40... h5 {[%clk 0:01:36.1]} 41. Kxa5
{[%clk 0:00:29.8]} 41... Kf6 {[%clk 0:01:34.8]} 42. b4 {[%clk 0:00:30]} 42... h4
{[%clk 0:01:35.2]} 43. gxh4 {[%clk 0:00:30.2]} 43... gxh4 {[%clk 0:01:37.1]} 44.
b5 {[%clk 0:00:31.4]} 44... Kg5 {[%clk 0:01:36]} 45. Kb6 {[%clk 0:00:32.2]}
45... Kf4 {[%clk 0:01:35.1]} 46. Re1 {[%clk 0:00:31.5]} 46... h3 {[%clk
0:01:35.5]} 47. a5 {[%clk 0:00:32.1]} 47... h2 {[%clk 0:01:33.1]} 48. a6 {[%clk
0:00:32.9]} 48... Kg3 {[%clk 0:01:22.3]} 49. Rh1 {[%clk 0:00:30.5]} 49... Kg2
{[%clk 0:01:20.8]} 50. Rxh2+ {[%clk 0:00:31.5]} 50... Kxh2 {[%clk 0:01:22.7]}
51. a7 {[%clk 0:00:32.3]} 51... Ra2 {[%clk 0:01:23.5]} 52. Kb7 {[%clk
0:00:33.2]} 52... Kg3 {[%clk 0:01:25]} 53. b6 {[%clk 0:00:33.4]} 53... Kf4
{[%clk 0:01:20.4]} 54. a8=Q {[%clk 0:00:34.2]} 54... Rxa8 {[%clk 0:01:20.1]} 55.
Kxa8 {[%clk 0:00:36.1]} 55... Ke5 {[%clk 0:01:22]} 56. b7 {[%clk 0:00:37.7]}
56... Kd6 {[%clk 0:01:23.9]} 57. b8=Q+ {[%clk 0:00:39.3]} 1-0

[Event "*** Titled Tuesday 3|2 Blitz"]
[Site "Chess.com"]
[Date "2015.07.07"]
[Round "4"]
[White "Cruel_Yaro"]
[Black "geeeeri"]
[Result "1-0"]
[WhiteElo "2491"]
[BlackElo "2318"]
[TimeControl "180+2"]
[EndTime "11:48:41 PDT"]
[Termination "Cruel_Yaro won by resignation"]

1. d4 {[%clk 0:03:01.9]} 1... d5 {[%clk 0:02:59.1]} 2. Nf3 {[%clk 0:03:02.7]}
2... c6 {[%clk 0:03:00.3]} 3. Bf4 {[%clk 0:03:02]} 3... Nf6 {[%clk 0:03:01.7]}
4. e3 {[%clk 0:03:02.8]} 4... e6 {[%clk 0:03:00.2]} 5. Nbd2 {[%clk 0:03:02.8]}
5... Bd6 {[%clk 0:03:00.6]} 6. Ne5 {[%clk 0:03:02.9]} 6... O-O {[%clk
0:02:57.5]} 7. Bd3 {[%clk 0:03:03.6]} 7... c5 {[%clk 0:02:56.7]} 8. c3 {[%clk
0:02:58.5]} 8... Nc6 {[%clk 0:02:57.2]} 9. O-O {[%clk 0:02:53.8]} 9... Bxe5
{[%clk 0:02:53.3]} 10. dxe5 {[%clk 0:02:53.9]} 10... Nd7 {[%clk 0:02:50]} 11.
Nf3 {[%clk 0:02:49.4]} 11... f6 {[%clk 0:02:41.5]} 12. exf6 {[%clk 0:02:46.7]}
12... e5 {[%clk 0:02:29.7]} 13. fxg7 {[%clk 0:02:04.4]} 13... Kxg7 {[%clk
0:02:08.6]} 14. Ng5 {[%clk 0:01:51.5]} 14... Nf6 {[%clk 0:02:09.2]} 15. Bg3
{[%clk 0:01:44.4]} 15... h6 {[%clk 0:02:04.3]} 16. Nh3 {[%clk 0:01:43.7]} 16...
Bxh3 {[%clk 0:02:01.7]} 17. gxh3 {[%clk 0:01:43.9]} 17... Qd7 {[%clk 0:01:53.8]}
18. Kg2 {[%clk 0:01:41.5]} 18... e4 {[%clk 0:01:46.3]} 19. Be2 {[%clk
0:01:32.7]} 19... Kh8 {[%clk 0:01:40.4]} 20. Bg4 {[%clk 0:01:30.4]} 20... Qh7
{[%clk 0:01:10]} 21. Kh1 {[%clk 0:01:22.3]} 21... h5 {[%clk 0:01:09]} 22. Be2
{[%clk 0:01:19.6]} 22... Qf5 {[%clk 0:01:01]} 23. Bf4 {[%clk 0:01:05]} 23... d4
{[%clk 0:00:50.3]} 24. Rg1 {[%clk 0:00:22]} 24... d3 {[%clk 0:00:50.5]} 25. Bf1
{[%clk 0:00:21.9]} 25... Rg8 {[%clk 0:00:48.6]} 26. Bg2 {[%clk 0:00:16.6]} 26...
Ne7 {[%clk 0:00:32.6]} 27. f3 {[%clk 0:00:16.9]} 27... Rxg2 {[%clk 0:00:26.6]}
28. Rxg2 {[%clk 0:00:15.9]} 28... Qxh3 {[%clk 0:00:24.1]} 29. Be5 {[%clk
0:00:13.7]} 29... Qf5 {[%clk 0:00:22.4]} 30. Bxf6+ {[%clk 0:00:13.5]} 30... Qxf6
{[%clk 0:00:24.3]} 31. fxe4 {[%clk 0:00:14.8]} 31... Qe5 {[%clk 0:00:23.8]} 32.
Qxd3 {[%clk 0:00:14.7]} 32... Rf8 {[%clk 0:00:21.6]} 33. Rag1 {[%clk 0:00:14.8]}
33... h4 {[%clk 0:00:21]} 34. Rg5 {[%clk 0:00:15.1]} 1-0

[Event "*** Titled Tuesday 3|2 Blitz"]
[Site "Chess.com"]
[Date "2015.07.07"]
[Round "4"]
[White "Hikaru"]
[Black "Dlugy"]
[Result "1-0"]
[WhiteElo "2839"]
[BlackElo "2544"]
[TimeControl "180+2"]
[EndTime "11:48:57 PDT"]
[Termination "Hikaru won by resignation"]

1. b3 {[%clk 0:03:01.9]} 1... d5 {[%clk 0:03:00.5]} 2. Bb2 {[%clk 0:03:03.2]}
2... c5 {[%clk 0:03:01]} 3. e3 {[%clk 0:03:03.3]} 3... Nc6 {[%clk 0:03:00.4]} 4.
Bb5 {[%clk 0:03:03.9]} 4... Bd7 {[%clk 0:03:01.3]} 5. Nf3 {[%clk 0:03:05.4]}
5... Nf6 {[%clk 0:03:01.4]} 6. O-O {[%clk 0:03:06.2]} 6... g6 {[%clk 0:03:01.5]}
7. Bxc6 {[%clk 0:03:06.2]} 7... Bxc6 {[%clk 0:03:02.2]} 8. Ne5 {[%clk
0:03:08.1]} 8... Rc8 {[%clk 0:03:02.5]} 9. Ng4 {[%clk 0:03:05.8]} 9... d4 {[%clk
0:02:42.4]} 10. Nxf6+ {[%clk 0:03:06.3]} 10... exf6 {[%clk 0:02:43.4]} 11. exd4
{[%clk 0:03:07.5]} 11... Bg7 {[%clk 0:02:12.7]} 12. Re1+ {[%clk 0:03:04]} 12...
Kf8 {[%clk 0:02:14.3]} 13. dxc5 {[%clk 0:03:04.9]} 13... Qd5 {[%clk 0:02:15.2]}
14. Qg4 {[%clk 0:03:05.1]} 14... f5 {[%clk 0:02:13.3]} 15. Bxg7+ {[%clk
0:03:05.3]} 15... Kxg7 {[%clk 0:02:14.6]} 16. Qh3 {[%clk 0:03:05.2]} 16... Qxc5
{[%clk 0:02:11.8]} 17. Qc3+ {[%clk 0:03:05.1]} 17... Qxc3 {[%clk 0:02:12.9]} 18.
Nxc3 {[%clk 0:03:07]} 18... Rhd8 {[%clk 0:02:13.7]} 19. Re2 {[%clk 0:03:00.6]}
19... b5 {[%clk 0:02:14.5]} 20. a3 {[%clk 0:02:41.4]} 20... a5 {[%clk
0:02:15.4]} 21. Nd1 {[%clk 0:02:20.9]} 21... a4 {[%clk 0:01:50]} 22. b4 {[%clk
0:02:09.8]} 22... Be4 {[%clk 0:01:50.7]} 23. d3 {[%clk 0:02:10.8]} 23... Bd5
{[%clk 0:01:52.3]} 24. f4 {[%clk 0:02:04.5]} 24... Rc7 {[%clk 0:01:51.6]} 25.
Kf2 {[%clk 0:02:05]} 25... Rdc8 {[%clk 0:01:52.7]} 26. Ne3 {[%clk 0:02:06.2]}
26... Be6 {[%clk 0:01:53.9]} 27. g3 {[%clk 0:02:06]} 27... h6 {[%clk 0:01:51.1]}
28. h4 {[%clk 0:02:04.6]} 28... Rc6 {[%clk 0:01:52.2]} 29. Ke1 {[%clk
0:02:05.8]} 29... f6 {[%clk 0:01:53]} 30. Kd2 {[%clk 0:02:06.5]} 30... g5 {[%clk
0:01:54.3]} 31. Kc1 {[%clk 0:02:01.9]} 31... Kf7 {[%clk 0:01:38.5]} 32. Kb2
{[%clk 0:02:00.2]} 32... gxf4 {[%clk 0:01:39.7]} 33. gxf4 {[%clk 0:02:01.2]}
33... Rg8 {[%clk 0:01:41.1]} 34. Rae1 {[%clk 0:02:00]} 34... Rg3 {[%clk
0:01:37.8]} 35. Nd1 {[%clk 0:02:00]} 35... Rg4 {[%clk 0:01:33.8]} 36. Nc3 {[%clk
0:01:55.5]} 36... Rxh4 {[%clk 0:01:35]} 37. Nxb5 {[%clk 0:01:53.7]} 37... Rxf4
{[%clk 0:01:36.1]} 38. Rh2 {[%clk 0:01:53.6]} 38... Kg6 {[%clk 0:01:27.8]} 39.
Reh1 {[%clk 0:01:53.1]} 39... Kg7 {[%clk 0:01:22.8]} 40. Rxh6 {[%clk 0:01:52.4]}
40... Rf2 {[%clk 0:01:11.3]} 41. Nd4 {[%clk 0:01:51.7]} 41... Rd6 {[%clk
0:01:12.6]} 42. Kc3 {[%clk 0:01:22.8]} 42... f4 {[%clk 0:01:07.6]} 43. R6h2
{[%clk 0:01:23.7]} 43... Rxh2 {[%clk 0:01:04.4]} 44. Rxh2 {[%clk 0:01:25.6]}
44... Kg6 {[%clk 0:01:02.8]} 45. Rf2 {[%clk 0:01:16.4]} 45... Kg5 {[%clk
0:01:03.6]} 46. Ne2 {[%clk 0:01:17.8]} 46... Rc6+ {[%clk 0:00:52.8]} 47. Kd2
{[%clk 0:01:17.8]} 47... Bg4 {[%clk 0:00:53.5]} 48. Nxf4 {[%clk 0:01:17.8]}
48... f5 {[%clk 0:00:54.6]} 49. c4 {[%clk 0:01:18.9]} 49... Rh6 {[%clk
0:00:53.6]} 50. c5 {[%clk 0:01:15]} 50... Kf6 {[%clk 0:00:46.1]} 51. b5 {[%clk
0:01:08.1]} 51... Ke5 {[%clk 0:00:46.5]} 52. Kc3 {[%clk 0:01:08.8]} 52... Rh1
{[%clk 0:00:46.1]} 53. b6 {[%clk 0:01:10.1]} 53... Rc1+ {[%clk 0:00:43.7]} 54.
Kb2 {[%clk 0:01:03.3]} 54... Rh1 {[%clk 0:00:40.4]} 55. c6 {[%clk 0:00:59.4]}
55... Kd6 {[%clk 0:00:41.3]} 56. c7 {[%clk 0:00:59.7]} 56... Kd7 {[%clk
0:00:41.5]} 57. Rc2 {[%clk 0:01:00.5]} 1-0

[Event "*** Titled Tuesday 3|2 Blitz"]
[Site "Chess.com"]
[Date "2015.07.07"]
[Round "4"]
[White "Carolina-moon"]
[Black "facu57"]
[Result "1-0"]
[WhiteElo "2003"]
[BlackElo "2191"]
[TimeControl "180+2"]
[EndTime "11:49:26 PDT"]
[Termination "Carolina-moon won by resignation"]

1. e4 {[%clk 0:03:01.9]} 1... c6 {[%clk 0:02:58.1]} 2. c4 {[%clk 0:03:02]} 2...
d5 {[%clk 0:02:59.7]} 3. exd5 {[%clk 0:03:03.9]} 3... cxd5 {[%clk 0:03:00.4]} 4.
cxd5 {[%clk 0:03:05.8]} 4... Nf6 {[%clk 0:03:00.5]} 5. Qa4+ {[%clk 0:03:07.1]}
5... Bd7 {[%clk 0:03:00.4]} 6. Qb3 {[%clk 0:03:07.6]} 6... Qc7 {[%clk
0:02:57.4]} 7. Nc3 {[%clk 0:03:08.4]} 7... a6 {[%clk 0:02:56.3]} 8. a4 {[%clk
0:03:07]} 8... e6 {[%clk 0:02:57.8]} 9. Bc4 {[%clk 0:02:51.2]} 9... exd5 {[%clk
0:02:50.5]} 10. Nxd5 {[%clk 0:02:51.3]} 10... Nxd5 {[%clk 0:02:51.9]} 11. Bxd5
{[%clk 0:02:52.5]} 11... Bc6 {[%clk 0:02:52.9]} 12. Nf3 {[%clk 0:02:45.5]} 12...
Bd6 {[%clk 0:02:53.1]} 13. O-O {[%clk 0:02:34.3]} 13... O-O {[%clk 0:02:54.1]}
14. Re1 {[%clk 0:02:23.5]} 14... Rd8 {[%clk 0:02:46.4]} 15. Bxc6 {[%clk
0:02:15.7]} 15... Nxc6 {[%clk 0:02:48.3]} 16. d4 {[%clk 0:02:14]} 16... Na5
{[%clk 0:01:19.7]} 17. Qd3 {[%clk 0:02:10.1]} 17... Qc4 {[%clk 0:01:20.9]} 18.
Qxc4 {[%clk 0:01:57.9]} 18... Nxc4 {[%clk 0:01:21.9]} 19. b3 {[%clk 0:01:55.1]}
19... Na5 {[%clk 0:01:20.6]} 20. Rb1 {[%clk 0:01:46.2]} 20... Bb4 {[%clk
0:01:20.1]} 21. Rd1 {[%clk 0:01:45.6]} 21... Rac8 {[%clk 0:01:19.8]} 22. Be3
{[%clk 0:01:33.3]} 22... Rc2 {[%clk 0:01:10.2]} 23. g3 {[%clk 0:01:20.1]} 23...
Rd5 {[%clk 0:01:10.2]} 24. Ne1 {[%clk 0:01:03.5]} 24... Bxe1 {[%clk 0:00:55.6]}
25. Rxe1 {[%clk 0:01:04.4]} 25... f6 {[%clk 0:00:54.3]} 26. Rec1 {[%clk
0:00:48.1]} 26... Rxc1+ {[%clk 0:00:39.8]} 27. Rxc1 {[%clk 0:00:50]} 27... Nxb3
{[%clk 0:00:39.7]} 28. Rc8+ {[%clk 0:00:50.7]} 28... Kf7 {[%clk 0:00:40.4]} 29.
Rc7+ {[%clk 0:00:52.1]} 29... Kg6 {[%clk 0:00:42]} 30. Rxb7 {[%clk 0:00:53.4]}
30... Nxd4 {[%clk 0:00:42.2]} 31. Ra7 {[%clk 0:00:42.1]} 31... Nc2 {[%clk
0:00:39.7]} 32. Rxa6 {[%clk 0:00:36.1]} 32... Nxe3 {[%clk 0:00:39.9]} 33. fxe3
{[%clk 0:00:37.4]} 33... Rd2 {[%clk 0:00:39.4]} 34. Rc6 {[%clk 0:00:22.6]} 34...
Kf5 {[%clk 0:00:39.6]} 35. Rc4 {[%clk 0:00:22.5]} 35... g5 {[%clk 0:00:38]} 36.
h3 {[%clk 0:00:23.3]} 36... h5 {[%clk 0:00:35]} 37. g4+ {[%clk 0:00:21.4]} 37...
Kg6 {[%clk 0:00:36.3]} 38. Rd4 {[%clk 0:00:20.1]} 38... Re2 {[%clk 0:00:34.5]}
39. Rd3 {[%clk 0:00:18.9]} 39... h4 {[%clk 0:00:34.8]} 40. Ra3 {[%clk
0:00:16.8]} 40... Re1+ {[%clk 0:00:33]} 41. Kf2 {[%clk 0:00:17.4]} 41... Rh1
{[%clk 0:00:34]} 42. Kg2 {[%clk 0:00:18.6]} 42... Rb1 {[%clk 0:00:32.9]} 43. a5
{[%clk 0:00:19.3]} 43... Rb7 {[%clk 0:00:34.5]} 44. a6 {[%clk 0:00:19.9]} 44...
Ra7 {[%clk 0:00:36.4]} 45. Kf3 {[%clk 0:00:21.1]} 45... Kf7 {[%clk 0:00:38.2]}
46. Ke4 {[%clk 0:00:20.5]} 46... Ke6 {[%clk 0:00:40.1]} 47. Ra5 {[%clk
0:00:20.5]} 47... Ke7 {[%clk 0:00:41.1]} 48. Kf5 {[%clk 0:00:21.5]} 48... Kf7
{[%clk 0:00:42.7]} 49. e4 {[%clk 0:00:21.1]} 49... Kg7 {[%clk 0:00:44]} 50. e5
{[%clk 0:00:21.8]} 50... fxe5 {[%clk 0:00:45.1]} 51. Kxe5 {[%clk 0:00:23.1]}
51... Kg6 {[%clk 0:00:43.8]} 52. Ke4 {[%clk 0:00:23.9]} 52... Re7+ {[%clk
0:00:44.4]} 53. Kd5 {[%clk 0:00:22.5]} 53... Ra7 {[%clk 0:00:44.5]} 54. Kc6
{[%clk 0:00:23]} 54... Rf7 {[%clk 0:00:39.6]} 55. a7 {[%clk 0:00:21.4]} 55...
Rf6+ {[%clk 0:00:41.1]} 56. Kb7 {[%clk 0:00:21.5]} 56... Rf7+ {[%clk 0:00:42.5]}
57. Kc6 {[%clk 0:00:21.8]} 57... Rf6+ {[%clk 0:00:44]} 58. Kd7 {[%clk
0:00:23.2]} 58... Ra6 {[%clk 0:00:44.1]} 59. Rxa6+ {[%clk 0:00:23.5]} 1-0

[Event "*** Titled Tuesday 3|2 Blitz"]
[Site "Chess.com"]
[Date "2015.07.07"]
[Round "4"]
[White "IMRosen"]
[Black "pedromartinez91"]
[Result "0-1"]
[WhiteElo "2245"]
[BlackElo "2156"]
[TimeControl "180+2"]
[EndTime "11:49:54 PDT"]
[Termination "pedromartinez91 won by resignation"]

1. c4 {[%clk 0:03:01.9]} 1... c6 {[%clk 0:02:59.7]} 2. Nc3 {[%clk 0:03:02]} 2...
d5 {[%clk 0:03:00.3]} 3. e3 {[%clk 0:03:03.7]} 3... Nf6 {[%clk 0:03:00]} 4. Nf3
{[%clk 0:03:05.2]} 4... g6 {[%clk 0:03:00.7]} 5. Qa4 {[%clk 0:03:05.1]} 5... Bg7
{[%clk 0:02:59.9]} 6. cxd5 {[%clk 0:03:06.2]} 6... Nxd5 {[%clk 0:03:00.2]} 7.
Qc2 {[%clk 0:03:07.2]} 7... O-O {[%clk 0:03:00]} 8. a3 {[%clk 0:03:07.6]} 8...
e5 {[%clk 0:02:59.6]} 9. d3 {[%clk 0:03:05.6]} 9... Be6 {[%clk 0:02:56.5]} 10.
Be2 {[%clk 0:03:06.9]} 10... Nd7 {[%clk 0:02:55.3]} 11. O-O {[%clk 0:03:08.5]}
11... Qe7 {[%clk 0:02:54.7]} 12. Bd2 {[%clk 0:03:08.2]} 12... Nc5 {[%clk
0:02:51.5]} 13. Na4 {[%clk 0:03:03.9]} 13... Nxa4 {[%clk 0:02:46.1]} 14. Qxa4
{[%clk 0:03:05.8]} 14... Rfd8 {[%clk 0:02:40.6]} 15. Rac1 {[%clk 0:03:04.1]}
15... Rd7 {[%clk 0:02:40.8]} 16. Rfd1 {[%clk 0:03:00.3]} 16... Nb6 {[%clk
0:02:40.9]} 17. Qa5 {[%clk 0:02:47]} 17... Bb3 {[%clk 0:02:40.3]} 18. Bb4 {[%clk
0:02:43.8]} 18... Qe8 {[%clk 0:02:29.4]} 19. Re1 {[%clk 0:02:37.9]} 19... Rd5
{[%clk 0:02:29.4]} 20. Rc5 {[%clk 0:02:37]} 20... Nd7 {[%clk 0:02:23.3]} 21.
Rxd5 {[%clk 0:02:36.4]} 21... Bxd5 {[%clk 0:02:23.4]} 22. Bd2 {[%clk 0:02:23.9]}
22... b6 {[%clk 0:02:12.3]} 23. Qb4 {[%clk 0:02:24.1]} 23... c5 {[%clk
0:02:11.7]} 24. Qa4 {[%clk 0:02:24.9]} 24... h6 {[%clk 0:02:05.5]} 25. e4 {[%clk
0:02:20.5]} 25... Be6 {[%clk 0:02:03.3]} 26. Qc2 {[%clk 0:02:22.1]} 26... Rc8
{[%clk 0:01:57.4]} 27. h3 {[%clk 0:02:14.4]} 27... Nb8 {[%clk 0:01:57.1]} 28.
Bc3 {[%clk 0:02:13.7]} 28... Nc6 {[%clk 0:01:57.3]} 29. Nh2 {[%clk 0:01:56.9]}
29... Nd4 {[%clk 0:01:57.9]} 30. Bxd4 {[%clk 0:01:58.1]} 30... cxd4 {[%clk
0:01:58.8]} 31. Qd2 {[%clk 0:01:59.5]} 31... Qa4 {[%clk 0:01:58.9]} 32. Rc1
{[%clk 0:01:59.5]} 32... Rc6 {[%clk 0:01:54.4]} 33. Bg4 {[%clk 0:01:54.1]} 33...
Bb3 {[%clk 0:01:49.7]} 34. Rxc6 {[%clk 0:01:48.4]} 34... Qxc6 {[%clk 0:01:49.7]}
35. Bd1 {[%clk 0:01:49.2]} 35... Qa4 {[%clk 0:01:47]} 36. Bxb3 {[%clk
0:01:48.8]} 36... Qxb3 {[%clk 0:01:47.9]} 37. Nf3 {[%clk 0:01:47.8]} 37... Kh7
{[%clk 0:01:45.1]} 38. h4 {[%clk 0:01:46.1]} 38... h5 {[%clk 0:01:31]} 39. Ng5+
{[%clk 0:01:40.6]} 39... Kh8 {[%clk 0:01:32]} 40. Nf3 {[%clk 0:01:42.1]} 40...
Kg8 {[%clk 0:01:27.8]} 41. Kf1 {[%clk 0:01:41.4]} 41... f6 {[%clk 0:01:26.6]}
42. Ne1 {[%clk 0:01:37.2]} 42... Bf8 {[%clk 0:01:26.6]} 43. Ke2 {[%clk 0:01:35]}
43... Kf7 {[%clk 0:01:23.4]} 44. Qc2 {[%clk 0:01:26.7]} 44... Qxc2+ {[%clk
0:01:23.5]} 45. Nxc2 {[%clk 0:01:28.6]} 45... Ke6 {[%clk 0:01:24.3]} 46. f3
{[%clk 0:01:18.3]} 46... Be7 {[%clk 0:01:24.8]} 47. g3 {[%clk 0:01:14.4]} 47...
f5 {[%clk 0:01:25.8]} 48. Ne1 {[%clk 0:00:58.2]} 48... b5 {[%clk 0:01:25.4]} 49.
Kd1 {[%clk 0:00:56.8]} 49... a5 {[%clk 0:01:22.3]} 50. Kc2 {[%clk 0:00:58]}
50... f4 {[%clk 0:01:22.1]} 51. gxf4 {[%clk 0:00:54.3]} 51... Bxh4 {[%clk
0:01:20.6]} 52. Ng2 {[%clk 0:00:54.9]} 52... Bg3 {[%clk 0:01:21.6]} 53. fxe5
{[%clk 0:00:11.1]} 53... h4 {[%clk 0:01:21.1]} 54. Nxh4 {[%clk 0:00:12.7]} 54...
Bxh4 {[%clk 0:01:20.6]} 55. f4 {[%clk 0:00:13.9]} 55... Bg3 {[%clk 0:01:20.9]}
56. f5+ {[%clk 0:00:14.8]} 56... gxf5 {[%clk 0:01:21.8]} 57. exf5+ {[%clk
0:00:16.7]} 57... Kxf5 {[%clk 0:01:22.4]} 58. Kb3 {[%clk 0:00:12.5]} 58... Kxe5
{[%clk 0:01:12.7]} 59. a4 {[%clk 0:00:13.1]} 59... bxa4+ {[%clk 0:01:13.7]} 60.
Kxa4 {[%clk 0:00:09.5]} 60... Be1 {[%clk 0:01:15.2]} 61. Kb5 {[%clk 0:00:10.9]}
61... Kd5 {[%clk 0:01:15.9]} 62. Kb6 {[%clk 0:00:10.7]} 62... Bc3 {[%clk
0:01:13]} 63. b3 {[%clk 0:00:07.3]} 63... Ke5 {[%clk 0:01:13.6]} 64. Kc5 {[%clk
0:00:03.7]} 64... Kf4 {[%clk 0:01:14.1]} 65. Kc4 {[%clk 0:00:04.7]} 65... Ke3
{[%clk 0:01:15]} 66. b4 {[%clk 0:00:06.3]} 66... axb4 {[%clk 0:01:13]} 0-1